[Event "Late-Titled-Tuesday-Blitz-September-19-2023"]
[Site "Chess.com"]
[Date "2023.09.19"]
[Round "7"]
[White "ChessWarrior7197"]
[Black "GadimbayliA"]
[Result "1/2-1/2"]
[WhiteElo "3052"]
[BlackElo "2834"]
[TimeControl "180+1"]
[EndTime "15:16:25 PDT"]
[Termination "Game drawn by stalemate"]

1. d4 {[%clk 0:02:45.9]} 1... d5 {[%clk 0:02:59.7]} 2. Nf3 {[%clk 0:02:46]} 2...
Nc6 {[%clk 0:02:59.6]} 3. Bf4 {[%clk 0:02:43]} 3... Nf6 {[%clk 0:02:59.3]} 4. e3
{[%clk 0:02:43.1]} 4... Bg4 {[%clk 0:02:59.6]} 5. Nbd2 {[%clk 0:02:41.5]} 5...
e6 {[%clk 0:02:59.7]} 6. Bb5 {[%clk 0:02:41.8]} 6... Bd6 {[%clk 0:02:59.3]} 7.
O-O {[%clk 0:02:35.7]} 7... O-O {[%clk 0:02:54.7]} 8. Bg5 {[%clk 0:02:29.5]}
8... h6 {[%clk 0:02:50.5]} 9. Bh4 {[%clk 0:02:29.9]} 9... Nb8 {[%clk 0:02:45.5]}
10. Bd3 {[%clk 0:02:25.6]} 10... Nbd7 {[%clk 0:02:42.9]} 11. h3 {[%clk
0:02:25.8]} 11... Bxf3 {[%clk 0:02:24.4]} 12. Nxf3 {[%clk 0:02:24.1]} 12... e5
{[%clk 0:02:20.5]} 13. dxe5 {[%clk 0:02:13]} 13... Nxe5 {[%clk 0:02:21.4]} 14.
Nxe5 {[%clk 0:02:04.5]} 14... Bxe5 {[%clk 0:02:22.3]} 15. c3 {[%clk 0:01:56.7]}
15... g5 {[%clk 0:02:13.3]} 16. Bg3 {[%clk 0:01:56.9]} 16... Bxg3 {[%clk
0:02:13.8]} 17. fxg3 {[%clk 0:01:57.8]} 17... Qe7 {[%clk 0:02:14.7]} 18. Kh2
{[%clk 0:01:49.8]} 18... Kg7 {[%clk 0:02:12.9]} 19. Rf5 {[%clk 0:01:44.1]} 19...
c6 {[%clk 0:02:10.6]} 20. Qf3 {[%clk 0:01:43.6]} 20... Rae8 {[%clk 0:02:07.8]}
21. Rf1 {[%clk 0:01:42.7]} 21... Nd7 {[%clk 0:02:05.4]} 22. Bb1 {[%clk
0:01:36.7]} 22... f6 {[%clk 0:02:00.3]} 23. Re1 {[%clk 0:01:24.4]} 23... Nc5
{[%clk 0:01:56.2]} 24. Qd1 {[%clk 0:01:08.9]} 24... Ne4 {[%clk 0:01:53.7]} 25.
Qd4 {[%clk 0:01:09.6]} 25... Qd6 {[%clk 0:01:42.3]} 26. Bxe4 {[%clk 0:01:08.8]}
26... Rxe4 {[%clk 0:01:43.2]} 27. Qxa7 {[%clk 0:01:09.6]} 27... Rf7 {[%clk
0:01:39.1]} 28. Rf3 {[%clk 0:01:04.9]} 28... h5 {[%clk 0:01:34]} 29. Kg1 {[%clk
0:00:59.8]} 29... c5 {[%clk 0:01:32.7]} 30. Ref1 {[%clk 0:00:43.6]} 30... Qc6
{[%clk 0:01:07.2]} 31. Qb8 {[%clk 0:00:41]} 31... Re8 {[%clk 0:01:04.1]} 32. Qa7
{[%clk 0:00:41.6]} 32... b5 {[%clk 0:00:59.7]} 33. Qa3 {[%clk 0:00:41]} 33...
Re4 {[%clk 0:00:50.1]} 34. b3 {[%clk 0:00:38.5]} 34... Qd6 {[%clk 0:00:40.5]}
35. Qb2 {[%clk 0:00:38.1]} 35... Qe5 {[%clk 0:00:40.8]} 36. Qd2 {[%clk 0:00:37]}
36... d4 {[%clk 0:00:40]} 37. exd4 {[%clk 0:00:29.7]} 37... cxd4 {[%clk
0:00:40.9]} 38. cxd4 {[%clk 0:00:29.7]} 38... Qxd4+ {[%clk 0:00:40.4]} 39. Qxd4
{[%clk 0:00:30.1]} 39... Rxd4 {[%clk 0:00:41.3]} 40. a3 {[%clk 0:00:21.9]} 40...
Rd6 {[%clk 0:00:28.9]} 41. b4 {[%clk 0:00:20.8]} 41... Ra7 {[%clk 0:00:26.6]}
42. Rc1 {[%clk 0:00:19.8]} 42... Kg6 {[%clk 0:00:25.2]} 43. Rc5 {[%clk
0:00:19.8]} 43... Rd1+ {[%clk 0:00:18.7]} 44. Kf2 {[%clk 0:00:19.7]} 44... Rd2+
{[%clk 0:00:18.1]} 45. Kf1 {[%clk 0:00:20.1]} 45... Rd1+ {[%clk 0:00:15.5]} 46.
Ke2 {[%clk 0:00:20.1]} 46... Ra1 {[%clk 0:00:16.2]} 47. Rxb5 {[%clk 0:00:19.9]}
47... Ra2+ {[%clk 0:00:16.3]} 48. Kf1 {[%clk 0:00:18.5]} 48... R7xa3 {[%clk
0:00:17]} 49. Rxa3 {[%clk 0:00:17.7]} 49... Rxa3 {[%clk 0:00:17.9]} 50. Kf2
{[%clk 0:00:16.5]} 50... Ra2+ {[%clk 0:00:18]} 51. Kg1 {[%clk 0:00:17.1]} 51...
Rb2 {[%clk 0:00:18]} 52. Rb8 {[%clk 0:00:16.8]} 52... Rb3 {[%clk 0:00:15.4]} 53.
Kh2 {[%clk 0:00:16.9]} 53... Rb1 {[%clk 0:00:14.5]} 54. b5 {[%clk 0:00:17.2]}
54... Kg7 {[%clk 0:00:14.3]} 55. b6 {[%clk 0:00:14.9]} 55... Kg6 {[%clk
0:00:14.6]} 56. h4 {[%clk 0:00:05.9]} 56... g4 {[%clk 0:00:14.6]} 57. Rg8+
{[%clk 0:00:06.3]} 57... Kh7 {[%clk 0:00:14]} 58. Rb8 {[%clk 0:00:06.8]} 58...
Kg7 {[%clk 0:00:13.6]} 59. Rb7+ {[%clk 0:00:07.4]} 59... Kg6 {[%clk 0:00:13.8]}
60. Rb8 {[%clk 0:00:07.9]} 60... Kg7 {[%clk 0:00:14.3]} 61. b7 {[%clk
0:00:08.2]} 61... Kh7 {[%clk 0:00:13.2]} 62. Rf8 {[%clk 0:00:08.8]} 62... Rxb7
{[%clk 0:00:12.3]} 63. Rxf6 {[%clk 0:00:09.4]} 63... Rb1 {[%clk 0:00:12.9]} 64.
Rf4 {[%clk 0:00:08.9]} 64... Kg6 {[%clk 0:00:12.9]} 65. Re4 {[%clk 0:00:09.3]}
65... Kh6 {[%clk 0:00:13]} 66. Re6+ {[%clk 0:00:09.9]} 66... Kh7 {[%clk
0:00:13.4]} 67. Rd6 {[%clk 0:00:10.8]} 67... Kg7 {[%clk 0:00:13.3]} 68. Rd5
{[%clk 0:00:10.9]} 68... Kh6 {[%clk 0:00:13.4]} 69. Rxh5+ {[%clk 0:00:11]} 69...
Kxh5 {[%clk 0:00:13.1]} 1/2-1/2

[Event "Late-Titled-Tuesday-Blitz-September-19-2023"]
[Site "Chess.com"]
[Date "2023.09.19"]
[Round "7"]
[White "Laico"]
[Black "Nathan_Filgueiras"]
[Result "1/2-1/2"]
[WhiteElo "2403"]
[BlackElo "2507"]
[TimeControl "180+1"]
[EndTime "15:16:25 PDT"]
[Termination "Game drawn by repetition"]

1. e4 {[%clk 0:03:00.9]} 1... c5 {[%clk 0:03:00.2]} 2. Nc3 {[%clk 0:03:01.4]}
2... d6 {[%clk 0:02:59.8]} 3. f4 {[%clk 0:03:01.8]} 3... g6 {[%clk 0:02:59.7]}
4. Nf3 {[%clk 0:03:02.3]} 4... Bg7 {[%clk 0:03:00.4]} 5. Bb5+ {[%clk 0:03:02.9]}
5... Bd7 {[%clk 0:02:59.6]} 6. O-O {[%clk 0:03:03]} 6... Bxb5 {[%clk 0:02:55.6]}
7. Nxb5 {[%clk 0:03:02.8]} 7... Nc6 {[%clk 0:02:56]} 8. d3 {[%clk 0:03:01.7]}
8... a6 {[%clk 0:02:54]} 9. Nc3 {[%clk 0:03:01.8]} 9... b5 {[%clk 0:02:52.1]}
10. Kh1 {[%clk 0:02:54.3]} 10... Nf6 {[%clk 0:02:49.5]} 11. Qe1 {[%clk 0:02:53]}
11... Nd4 {[%clk 0:02:46.8]} 12. Nxd4 {[%clk 0:02:43.5]} 12... cxd4 {[%clk
0:02:46.3]} 13. Ne2 {[%clk 0:02:44.1]} 13... Nd7 {[%clk 0:02:40]} 14. Qf2 {[%clk
0:02:33.9]} 14... Qb6 {[%clk 0:02:39.5]} 15. Bd2 {[%clk 0:02:18.8]} 15... O-O
{[%clk 0:02:32]} 16. Qh4 {[%clk 0:02:17.6]} 16... Rac8 {[%clk 0:02:30.9]} 17.
Rac1 {[%clk 0:01:51.5]} 17... Rc7 {[%clk 0:01:51.2]} 18. f5 {[%clk 0:01:40.6]}
18... Ne5 {[%clk 0:01:47]} 19. Nf4 {[%clk 0:01:39.3]} 19... Qb7 {[%clk
0:01:06.9]} 20. Nd5 {[%clk 0:01:37.8]} 20... Rd7 {[%clk 0:01:07.1]} 21. f6
{[%clk 0:01:38.3]} 21... exf6 {[%clk 0:01:03.5]} 22. Nxf6+ {[%clk 0:01:39.2]}
22... Bxf6 {[%clk 0:01:03.7]} 23. Qxf6 {[%clk 0:01:39.6]} 23... Ng4 {[%clk
0:00:54.4]} 24. Qh4 {[%clk 0:01:35.3]} 24... Ne3 {[%clk 0:00:46.3]} 25. Rf3
{[%clk 0:01:35.4]} 25... d5 {[%clk 0:00:39.2]} 26. Bxe3 {[%clk 0:01:24]} 26...
dxe3 {[%clk 0:00:29.5]} 27. Rxe3 {[%clk 0:01:24.9]} 27... d4 {[%clk 0:00:26.4]}
28. Rh3 {[%clk 0:01:23.9]} 28... f5 {[%clk 0:00:26.3]} 29. Rf3 {[%clk
0:00:33.2]} 29... fxe4 {[%clk 0:00:09.9]} 30. Rxf8+ {[%clk 0:00:25.9]} 30...
Kxf8 {[%clk 0:00:10.8]} 31. dxe4 {[%clk 0:00:20]} 31... Rf7 {[%clk 0:00:06.2]}
32. Qd8+ {[%clk 0:00:15.6]} 32... Kg7 {[%clk 0:00:06.5]} 33. Qxd4+ {[%clk
0:00:16.5]} 33... Kg8 {[%clk 0:00:07.2]} 34. Re1 {[%clk 0:00:14.1]} 34... Qc7
{[%clk 0:00:06.7]} 35. c3 {[%clk 0:00:12.8]} 35... Qf4 {[%clk 0:00:05.2]} 36. h3
{[%clk 0:00:11.6]} 36... Re7 {[%clk 0:00:04]} 37. e5 {[%clk 0:00:11.5]} 37...
Qf5 {[%clk 0:00:03.6]} 38. Qd8+ {[%clk 0:00:10.7]} 38... Kf7 {[%clk 0:00:03.7]}
39. Qd5+ {[%clk 0:00:08.8]} 39... Qe6 {[%clk 0:00:02.7]} 40. Rf1+ {[%clk
0:00:05.9]} 40... Kg7 {[%clk 0:00:03.1]} 41. Qxe6 {[%clk 0:00:05.6]} 41... Rxe6
{[%clk 0:00:04]} 42. Re1 {[%clk 0:00:06.2]} 42... Kf7 {[%clk 0:00:04.1]} 43. Kg1
{[%clk 0:00:06.7]} 43... Rc6 {[%clk 0:00:04.5]} 44. Kf2 {[%clk 0:00:06.7]} 44...
Ke6 {[%clk 0:00:05.3]} 45. Re4 {[%clk 0:00:06.6]} 45... a5 {[%clk 0:00:05.2]}
46. Ke3 {[%clk 0:00:07]} 46... Rc5 {[%clk 0:00:04.9]} 47. Kf4 {[%clk 0:00:07]}
47... a4 {[%clk 0:00:04.9]} 48. Kg5 {[%clk 0:00:07]} 48... Rxe5+ {[%clk
0:00:02.7]} 49. Rxe5+ {[%clk 0:00:06.8]} 49... Kxe5 {[%clk 0:00:03.6]} 50. Kh6
{[%clk 0:00:04.9]} 50... Ke4 {[%clk 0:00:04.3]} 51. Kxh7 {[%clk 0:00:03.7]}
51... Kd3 {[%clk 0:00:05.1]} 52. Kxg6 {[%clk 0:00:03.4]} 52... Kc2 {[%clk
0:00:06]} 53. h4 {[%clk 0:00:03.2]} 53... Kxb2 {[%clk 0:00:05.9]} 54. h5 {[%clk
0:00:04.1]} 54... Kxa2 {[%clk 0:00:06.2]} 55. h6 {[%clk 0:00:05]} 55... a3
{[%clk 0:00:07.1]} 56. h7 {[%clk 0:00:05.7]} 56... Kb3 {[%clk 0:00:07.5]} 57.
h8=Q {[%clk 0:00:06.6]} 57... a2 {[%clk 0:00:08.4]} 58. Qg8+ {[%clk 0:00:03.6]}
58... Kb2 {[%clk 0:00:08.6]} 59. Qa8 {[%clk 0:00:01]} 59... a1=Q {[%clk
0:00:07.3]} 60. Qxa1+ {[%clk 0:00:01.9]} 60... Kxa1 {[%clk 0:00:08.2]} 61. Kf5
{[%clk 0:00:02.5]} 61... Kb2 {[%clk 0:00:08.9]} 62. g4 {[%clk 0:00:02.8]} 62...
Kxc3 {[%clk 0:00:09.7]} 63. g5 {[%clk 0:00:03.5]} 63... b4 {[%clk 0:00:10.5]}
64. g6 {[%clk 0:00:04.4]} 64... b3 {[%clk 0:00:11.2]} 65. g7 {[%clk 0:00:05.3]}
65... b2 {[%clk 0:00:12]} 66. g8=Q {[%clk 0:00:05.8]} 66... b1=Q+ {[%clk
0:00:12.9]} 67. Kf6 {[%clk 0:00:06.3]} 67... Qb6+ {[%clk 0:00:12.5]} 68. Kg7
{[%clk 0:00:06.2]} 68... Qd4+ {[%clk 0:00:12.1]} 69. Kh7 {[%clk 0:00:05.9]}
69... Qh4+ {[%clk 0:00:12.2]} 70. Kg7 {[%clk 0:00:06.2]} 70... Qg5+ {[%clk
0:00:12.8]} 71. Kh7 {[%clk 0:00:06.4]} 71... Qh5+ {[%clk 0:00:12.7]} 72. Kg7
{[%clk 0:00:06.9]} 72... Qg5+ {[%clk 0:00:13.4]} 73. Kh7 {[%clk 0:00:07.5]}
73... Qh5+ {[%clk 0:00:14.1]} 74. Kg7 {[%clk 0:00:08]} 74... Qg5+ {[%clk
0:00:14.8]} 1/2-1/2

[Event "Late-Titled-Tuesday-Blitz-September-19-2023"]
[Site "Chess.com"]
[Date "2023.09.19"]
[Round "7"]
[White "Danishcrown"]
[Black "WilliamAlfaroCaracas"]
[Result "1-0"]
[WhiteElo "2123"]
[BlackElo "2248"]
[TimeControl "180+1"]
[EndTime "15:16:35 PDT"]
[Termination "Danishcrown won on time"]

1. d4 {[%clk 0:02:58.2]} 1... Nf6 {[%clk 0:02:59.2]} 2. Bf4 {[%clk 0:02:57.1]}
2... g6 {[%clk 0:02:57.3]} 3. Nf3 {[%clk 0:02:57]} 3... Bg7 {[%clk 0:02:56.9]}
4. e3 {[%clk 0:02:57.4]} 4... O-O {[%clk 0:02:54.9]} 5. Bd3 {[%clk 0:02:56.9]}
5... d6 {[%clk 0:02:54.9]} 6. h3 {[%clk 0:02:53.1]} 6... c5 {[%clk 0:02:54.1]}
7. c3 {[%clk 0:02:45.3]} 7... Qb6 {[%clk 0:02:54.3]} 8. Qc2 {[%clk 0:02:29.8]}
8... Nc6 {[%clk 0:02:51.5]} 9. O-O {[%clk 0:02:25]} 9... cxd4 {[%clk 0:02:51.3]}
10. exd4 {[%clk 0:02:23.9]} 10... Nh5 {[%clk 0:02:22]} 11. Bh2 {[%clk
0:02:20.9]} 11... e5 {[%clk 0:02:21.3]} 12. Nbd2 {[%clk 0:02:05.8]} 12... exd4
{[%clk 0:01:49.5]} 13. Nc4 {[%clk 0:02:03.1]} 13... Qd8 {[%clk 0:01:47.3]} 14.
Nxd6 {[%clk 0:01:41.6]} 14... dxc3 {[%clk 0:01:08.3]} 15. bxc3 {[%clk
0:01:42.5]} 15... Qf6 {[%clk 0:01:07]} 16. Ne4 {[%clk 0:00:51.2]} 16... Qd8
{[%clk 0:01:05.8]} 17. Rad1 {[%clk 0:00:42]} 17... Qa5 {[%clk 0:01:04.2]} 18.
Bc4 {[%clk 0:00:29.9]} 18... Bf5 {[%clk 0:00:47.9]} 19. Rd5 {[%clk 0:00:27.5]}
19... Bxe4 {[%clk 0:00:45.2]} 20. Qxe4 {[%clk 0:00:26.1]} 20... Nf6 {[%clk
0:00:44.4]} 21. Rxa5 {[%clk 0:00:20]} 21... Nxe4 {[%clk 0:00:42.8]} 22. Rb5
{[%clk 0:00:16.4]} 22... Nxc3 {[%clk 0:00:36]} 23. Rxb7 {[%clk 0:00:15.2]} 23...
Na5 {[%clk 0:00:36.5]} 24. Rc7 {[%clk 0:00:13.8]} 24... Nxc4 {[%clk 0:00:33.6]}
25. Rxc4 {[%clk 0:00:13.6]} 25... Nxa2 {[%clk 0:00:33.5]} 26. Ra4 {[%clk
0:00:12.4]} 26... Nc3 {[%clk 0:00:33.2]} 27. Ra6 {[%clk 0:00:12.6]} 27... Rfe8
{[%clk 0:00:23.4]} 28. Bc7 {[%clk 0:00:06.9]} 28... Nd5 {[%clk 0:00:21.8]} 29.
Bg3 {[%clk 0:00:05.6]} 29... Nb4 {[%clk 0:00:19.9]} 30. Ra4 {[%clk 0:00:05.4]}
30... a5 {[%clk 0:00:20.5]} 31. Bc7 {[%clk 0:00:05]} 31... Rec8 {[%clk
0:00:14.4]} 32. Rxa5 {[%clk 0:00:03.3]} 32... Rxa5 {[%clk 0:00:10.6]} 33. Bxa5
{[%clk 0:00:04.2]} 33... Nd5 {[%clk 0:00:08.5]} 34. Bd2 {[%clk 0:00:04.8]} 34...
Nf6 {[%clk 0:00:08.6]} 35. Bg5 {[%clk 0:00:04.5]} 35... Ne4 {[%clk 0:00:08.7]}
36. Be3 {[%clk 0:00:05]} 36... h5 {[%clk 0:00:08.6]} 37. Re1 {[%clk 0:00:05.1]}
37... Rc2 {[%clk 0:00:08.4]} 38. Nd4 {[%clk 0:00:04.6]} 38... Ra2 {[%clk
0:00:07.8]} 39. Nf3 {[%clk 0:00:04.8]} 39... Nc3 {[%clk 0:00:07.6]} 40. Kf1
{[%clk 0:00:04]} 40... Kh7 {[%clk 0:00:07]} 41. Rc1 {[%clk 0:00:04.2]} 41... Nd5
{[%clk 0:00:06]} 42. Re1 {[%clk 0:00:04.5]} 42... Nxe3+ {[%clk 0:00:06.2]} 43.
Rxe3 {[%clk 0:00:05.4]} 43... Ra1+ {[%clk 0:00:05]} 44. Re1 {[%clk 0:00:05.6]}
44... Ra2 {[%clk 0:00:05.4]} 45. Re2 {[%clk 0:00:05.5]} 45... Rxe2 {[%clk
0:00:04.5]} 46. Kxe2 {[%clk 0:00:05.9]} 46... Bf6 {[%clk 0:00:04.8]} 47. Ne1
{[%clk 0:00:06]} 47... g5 {[%clk 0:00:04.8]} 48. g4 {[%clk 0:00:05.6]} 48... h4
{[%clk 0:00:04]} 49. Kf3 {[%clk 0:00:05.5]} 49... Kg6 {[%clk 0:00:04.4]} 50. Ke4
{[%clk 0:00:05.7]} 50... Be7 {[%clk 0:00:04.6]} 51. Nd3 {[%clk 0:00:06.2]} 51...
Bd6 {[%clk 0:00:04.3]} 52. f3 {[%clk 0:00:06.4]} 52... Bg3 {[%clk 0:00:03.8]}
53. Kd5 {[%clk 0:00:06.4]} 53... Kf6 {[%clk 0:00:03.3]} 54. Nc5 {[%clk
0:00:06.4]} 54... Bf4 {[%clk 0:00:02.2]} 55. Ne4+ {[%clk 0:00:06.6]} 55... Kg6
{[%clk 0:00:02.5]} 56. Nc3 {[%clk 0:00:06.7]} 56... Bd2 {[%clk 0:00:02.4]} 57.
Ne2 {[%clk 0:00:06.6]} 57... Bf4 {[%clk 0:00:02.9]} 58. Ke4 {[%clk 0:00:06.8]}
58... Bd6 {[%clk 0:00:02.3]} 59. Nd4 {[%clk 0:00:07.1]} 59... Be7 {[%clk
0:00:03.2]} 60. Nf5 {[%clk 0:00:07.2]} 60... Bf8 {[%clk 0:00:03.5]} 61. Ne3
{[%clk 0:00:07.2]} 61... Bg7 {[%clk 0:00:03.6]} 62. Nd5 {[%clk 0:00:07.2]} 62...
Bh8 {[%clk 0:00:04.1]} 63. Nb6 {[%clk 0:00:07.3]} 63... Bg7 {[%clk 0:00:04.1]}
64. Nd7 {[%clk 0:00:07.6]} 64... Kh7 {[%clk 0:00:02.4]} 65. Kf5 {[%clk
0:00:07.7]} 65... Kh6 {[%clk 0:00:02.7]} 66. Nf6 {[%clk 0:00:06.5]} 66... Bh8
{[%clk 0:00:02.5]} 67. Ne4 {[%clk 0:00:06.2]} 67... Bg7 {[%clk 0:00:02.6]} 68.
Nxg5 {[%clk 0:00:06.3]} 68... f6 {[%clk 0:00:02.4]} 69. Ne4 {[%clk 0:00:06.4]}
69... Bh8 {[%clk 0:00:02.9]} 70. Nxf6 {[%clk 0:00:06.6]} 70... Bg7 {[%clk
0:00:02.9]} 71. Ne4 {[%clk 0:00:06.8]} 71... Bf8 {[%clk 0:00:03.5]} 72. f4
{[%clk 0:00:07.4]} 72... Bc5 {[%clk 0:00:03.5]} 73. Ng5 {[%clk 0:00:07.7]} 1-0

[Event "Late-Titled-Tuesday-Blitz-September-19-2023"]
[Site "Chess.com"]
[Date "2023.09.19"]
[Round "7"]
[White "SCIM"]
[Black "leoduarte"]
[Result "1/2-1/2"]
[WhiteElo "2567"]
[BlackElo "2505"]
[TimeControl "180+1"]
[EndTime "15:16:47 PDT"]
[Termination "Game drawn by stalemate"]

1. Nf3 {[%clk 0:03:00.9]} 1... d5 {[%clk 0:02:59.7]} 2. g3 {[%clk 0:03:00.7]}
2... Bf5 {[%clk 0:02:58.5]} 3. Bg2 {[%clk 0:03:00.3]} 3... Nf6 {[%clk
0:02:59.2]} 4. c4 {[%clk 0:02:59.2]} 4... c6 {[%clk 0:02:58.3]} 5. O-O {[%clk
0:02:56.2]} 5... h6 {[%clk 0:02:56.7]} 6. cxd5 {[%clk 0:02:52.4]} 6... cxd5
{[%clk 0:02:56.4]} 7. Qb3 {[%clk 0:02:43.7]} 7... Qb6 {[%clk 0:02:35.7]} 8. Nc3
{[%clk 0:02:41]} 8... e6 {[%clk 0:02:31.3]} 9. Qa4+ {[%clk 0:02:23.4]} 9... Nbd7
{[%clk 0:02:20.3]} 10. d3 {[%clk 0:02:17.5]} 10... Be7 {[%clk 0:01:54.2]} 11.
Be3 {[%clk 0:01:53.2]} 11... Qxb2 {[%clk 0:01:40.1]} 12. Nb5 {[%clk 0:01:43.3]}
12... O-O {[%clk 0:01:31.1]} 13. Nfd4 {[%clk 0:01:13]} 13... Qb4 {[%clk
0:01:14.3]} 14. Qxb4 {[%clk 0:01:09.1]} 14... Bxb4 {[%clk 0:01:15.2]} 15. Nxf5
{[%clk 0:01:09.1]} 15... exf5 {[%clk 0:01:15]} 16. Nc7 {[%clk 0:01:05.2]} 16...
Rac8 {[%clk 0:01:01.6]} 17. Nxd5 {[%clk 0:00:59.7]} 17... Nxd5 {[%clk
0:01:01.7]} 18. Bxd5 {[%clk 0:00:58.5]} 18... b6 {[%clk 0:01:00.3]} 19. Rac1
{[%clk 0:00:49.6]} 19... Nc5 {[%clk 0:00:59.3]} 20. d4 {[%clk 0:00:43.1]} 20...
Ne4 {[%clk 0:00:58.8]} 21. Bxe4 {[%clk 0:00:37.2]} 21... fxe4 {[%clk 0:00:59.7]}
22. Bf4 {[%clk 0:00:27.1]} 22... Rfd8 {[%clk 0:00:56.5]} 23. e3 {[%clk
0:00:25.4]} 23... Kf8 {[%clk 0:00:52.7]} 24. g4 {[%clk 0:00:25.4]} 24... Ke7
{[%clk 0:00:50]} 25. Kg2 {[%clk 0:00:25.2]} 25... Bd2 {[%clk 0:00:45]} 26. Rcd1
{[%clk 0:00:23.6]} 26... Rc2 {[%clk 0:00:45.2]} 27. a4 {[%clk 0:00:20.1]} 27...
g5 {[%clk 0:00:40.6]} 28. Bg3 {[%clk 0:00:19.1]} 28... Bxe3 {[%clk 0:00:40.9]}
29. Rfe1 {[%clk 0:00:17.8]} 29... Bf4 {[%clk 0:00:28.7]} 30. Rxe4+ {[%clk
0:00:16.6]} 30... Kf8 {[%clk 0:00:25.6]} 31. Bxf4 {[%clk 0:00:16.8]} 31... gxf4
{[%clk 0:00:26.3]} 32. Rxf4 {[%clk 0:00:17.6]} 32... Ra2 {[%clk 0:00:26.3]} 33.
d5 {[%clk 0:00:17.8]} 33... Rd6 {[%clk 0:00:25.4]} 34. Rd3 {[%clk 0:00:17.7]}
34... f6 {[%clk 0:00:22.9]} 35. h4 {[%clk 0:00:17]} 35... Re2 {[%clk 0:00:22.2]}
36. g5 {[%clk 0:00:15.7]} 36... hxg5 {[%clk 0:00:21.6]} 37. hxg5 {[%clk
0:00:16.6]} 37... Kg7 {[%clk 0:00:20.9]} 38. gxf6+ {[%clk 0:00:15.8]} 38... Kf7
{[%clk 0:00:21.5]} 39. Kf3 {[%clk 0:00:12.7]} 39... Re5 {[%clk 0:00:21.7]} 40.
Rfd4 {[%clk 0:00:11]} 40... Kxf6 {[%clk 0:00:21.7]} 41. Rf4+ {[%clk 0:00:11]}
41... Ke7 {[%clk 0:00:20.7]} 42. Rfd4 {[%clk 0:00:11.5]} 42... Kf6 {[%clk
0:00:19.9]} 43. Kg2 {[%clk 0:00:10.7]} 43... Rg5+ {[%clk 0:00:19.9]} 44. Kf1
{[%clk 0:00:07.7]} 44... Re5 {[%clk 0:00:19.4]} 45. Rf3+ {[%clk 0:00:07.5]}
45... Ke7 {[%clk 0:00:19.5]} 46. Rfd3 {[%clk 0:00:08.2]} 46... Kf6 {[%clk
0:00:19.7]} 47. Rf4+ {[%clk 0:00:08.1]} 47... Ke7 {[%clk 0:00:19.9]} 48. Rh4
{[%clk 0:00:07.8]} 48... Rdxd5 {[%clk 0:00:19.2]} 49. Rxd5 {[%clk 0:00:08.7]}
49... Rxd5 {[%clk 0:00:20.1]} 50. Rh7+ {[%clk 0:00:09.5]} 50... Kf6 {[%clk
0:00:18.6]} 51. Rxa7 {[%clk 0:00:10.4]} 51... Rd4 {[%clk 0:00:17.7]} 52. Ra6
{[%clk 0:00:10.9]} 52... Kf5 {[%clk 0:00:18.4]} 53. Rxb6 {[%clk 0:00:10.5]}
53... Rxa4 {[%clk 0:00:18.6]} 54. Rb5+ {[%clk 0:00:11]} 54... Kf6 {[%clk
0:00:18.2]} 55. Rb3 {[%clk 0:00:11.9]} 55... Rc4 {[%clk 0:00:18.5]} 56. Kg2
{[%clk 0:00:12.5]} 56... Ra4 {[%clk 0:00:19.1]} 57. Kg3 {[%clk 0:00:12.7]} 57...
Rc4 {[%clk 0:00:19.7]} 58. Rf3+ {[%clk 0:00:12.8]} 58... Kg6 {[%clk 0:00:19.4]}
59. Ra3 {[%clk 0:00:13.7]} 59... Rc5 {[%clk 0:00:19.4]} 60. Ra6+ {[%clk
0:00:13.9]} 60... Kf5 {[%clk 0:00:18.6]} 61. Ra4 {[%clk 0:00:13.3]} 61... Rb5
{[%clk 0:00:18.7]} 62. f3 {[%clk 0:00:13.8]} 62... Rd5 {[%clk 0:00:18.8]} 63.
Rh4 {[%clk 0:00:14.1]} 63... Kf6 {[%clk 0:00:17]} 64. Rh6+ {[%clk 0:00:13.8]}
64... Kf7 {[%clk 0:00:16.6]} 65. Rh7+ {[%clk 0:00:13.6]} 65... Kf8 {[%clk
0:00:16.4]} 66. Kg4 {[%clk 0:00:11.8]} 66... Rb5 {[%clk 0:00:16.8]} 67. f4
{[%clk 0:00:12]} 67... Rb6 {[%clk 0:00:17.3]} 68. Ra7 {[%clk 0:00:11.8]} 68...
Rc6 {[%clk 0:00:17.7]} 69. Kg5 {[%clk 0:00:12]} 69... Rb6 {[%clk 0:00:18]} 70.
f5 {[%clk 0:00:12.5]} 70... Rc6 {[%clk 0:00:18.3]} 71. Rb7 {[%clk 0:00:11.1]}
71... Ra6 {[%clk 0:00:18.2]} 72. Rc7 {[%clk 0:00:10.9]} 72... Rb6 {[%clk
0:00:18.4]} 73. Rc4 {[%clk 0:00:10.3]} 73... Ra6 {[%clk 0:00:18.3]} 74. Rg4
{[%clk 0:00:07.4]} 74... Rb6 {[%clk 0:00:17.2]} 75. f6 {[%clk 0:00:06.9]} 75...
Kf7 {[%clk 0:00:17.6]} 76. Rf4 {[%clk 0:00:05.4]} 76... Rb5+ {[%clk 0:00:17.5]}
77. Rf5 {[%clk 0:00:05.9]} 77... Rxf5+ {[%clk 0:00:16.5]} 78. Kxf5 {[%clk
0:00:06]} 78... Kf8 {[%clk 0:00:17.1]} 79. Ke5 {[%clk 0:00:06.6]} 79... Kf7
{[%clk 0:00:17.3]} 80. Kf5 {[%clk 0:00:07.2]} 80... Kf8 {[%clk 0:00:17.6]} 81.
Ke6 {[%clk 0:00:08.1]} 81... Ke8 {[%clk 0:00:17.8]} 82. f7+ {[%clk 0:00:09]}
82... Kf8 {[%clk 0:00:18.2]} 83. Kf6 {[%clk 0:00:09.9]} 1/2-1/2